bitfinex-derivatives/quotes_BTCF0:USTF0_20260314
["timestamp","ask_amount","ask_price","bid_price","bid_amount"]
[1773494457205,0.0014,70954.0,70942.0,0.11022701]
[1773494458421,0.0024,70954.0,70942.0,0.11022701]
[1773494458919,0.044675,70954.0,70942.0,0.11022701]
[1773494459809,0.042275,70953.0,70942.0,0.06794601]
[1773494460010,0.0024,70954.0,70942.0,0.06794601]
[1773494460515,0.042276,70952.0,70939.0,0.042283]
[1773494461018,0.043674,70954.0,70940.0,0.042282]
[1773494461414,0.043674,70954.0,70938.0,0.06794601]
[1773494462114,0.0014,70954.0,70942.0,0.11022701]
[1773494463215,0.0014,70954.0,70942.0,0.06794601]
[1773494463412,0.0014,70953.0,70942.0,0.06794601]
[1773494463612,0.0014,70952.0,70942.0,0.06794601]
[1773494463920,0.001,70954.0,70942.0,0.06794601]
[1773494463921,0.0014,70951.0,70942.0,0.06794601]
[1773494465025,0.0014,70951.0,70945.0,0.042279]
[1773494465521,0.1,70963.0,70941.0,0.06794601]
[1773494465522,0.04227,70961.0,70941.0,0.06794601]
[1773494465722,0.0014,70960.0,70942.0,0.06794601]
[1773494466018,0.1,70963.0,70942.0,0.06794601]
[1773494466223,0.0014,70962.0,70954.0,0.06794601]
[1773494466721,0.0014,70961.0,70954.0,0.06794601]
[1773494468928,0.1,70963.0,70954.0,0.06794601]
[1773494469128,0.0014,70960.0,70954.0,0.06794601]
[1773494469530,0.0014,70959.0,70954.0,0.06794601]
[1773494471030,0.0014,70958.0,70954.0,0.06794601]
[1773494471433,0.1,70963.0,70954.0,0.06794601]
[1773494471632,0.0014,70962.0,70954.0,0.06794601]
[1773494472028,0.0014,70961.0,70954.0,0.06794601]
[1773494472328,0.08428444,70963.0,70951.0,0.06794601]
[1773494472533,0.00141131,70965.0,70960.0,0.06794601]
[1773494472733,0.0014,70964.0,70960.0,0.06794601]
[1773494472937,0.0028,70965.0,70960.0,0.06794601]
[1773494473527,0.0014,70964.0,70960.0,0.06794601]
[1773494473722,0.0014,70965.0,70960.0,0.06794601]
[1773494473922,0.0014,70964.0,70959.0,0.042271]
[1773494474435,0.0014,70964.0,70960.0,0.06794601]
[1773494474734,0.0014,70965.0,70960.0,0.11021601]
[1773494475331,0.042262,70974.0,70961.0,0.06794601]
[1773494475534,0.0014,70973.0,70961.0,0.06794601]
[1773494475735,0.043663,70973.0,70961.0,0.06794601]
[1773494475935,0.00845528,70972.0,70961.0,0.06794601]
[1773494476829,0.0014,70971.0,70961.0,0.06794601]
[1773494477331,0.0014,70971.0,70949.0,0.042277]
[1773494477332,0.042269,70963.0,70949.0,0.042277]
[1773494477530,0.0014,70962.0,70949.0,0.042277]
[1773494477738,0.0014,70962.0,70951.0,0.042276]
[1773494477935,0.00845528,70961.0,70951.0,0.042276]
[1773494480443,0.0014,70962.0,70951.0,0.042276]
[1773494481839,0.00985528,70962.0,70953.0,0.042274]
[1773494482035,0.00985528,70962.0,70953.0,0.06743629]
[1773494482538,0.00985528,70962.0,70941.0,0.06743629]
[1773494482840,0.05212528,70962.0,70948.0,0.042277]
[1773494483041,0.04227,70961.0,70948.0,0.042277]
[1773494484329,0.042271,70960.0,70946.0,0.042279]
[1773494484533,0.11563833,70960.0,70947.0,0.042278]
[1773494484735,0.042271,70960.0,70947.0,0.042278]
[1773494485134,0.05212428,70962.0,70941.0,0.06743629]
[1773494485337,0.00985528,70962.0,70950.0,0.042276]
[1773494485535,0.0014,70962.0,70950.0,0.042276]
[1773494485941,0.042269,70963.0,70950.0,0.042276]
[1773494486146,0.00845528,70959.0,70950.0,0.042276]
[1773494486739,0.0014,70962.0,70937.0,0.167306]
[1773494486944,0.07336733,70960.0,70937.0,0.06743629]
[1773494487146,0.042271,70959.0,70946.0,0.042278]
[1773494487448,0.00845528,70952.0,70946.0,0.042278]
[1773494487646,0.0014,70951.0,70937.0,0.06743629]
[1773494487954,0.0014,70951.0,70945.0,0.042279]
[1773494488242,0.0014,70951.0,70937.0,0.06743629]
[1773494488448,0.0014,70951.0,70943.0,0.04228]
[1773494488650,0.0014,70951.0,70944.0,0.04228]
[1773494488941,0.0014,70951.0,70937.0,0.06743629]
[1773494490043,0.0014,70951.0,70943.0,0.04228]
[1773494490542,0.0014,70951.0,70941.0,0.042281]
[1773494490847,0.0014,70951.0,70942.0,0.042281]
[1773494491546,0.0014,70951.0,70943.0,0.04228]
[1773494492655,0.00985528,70951.0,70943.0,0.04228]
[1773494493853,0.00985528,70951.0,70937.0,0.06743629]
[1773494494243,0.00985528,70951.0,70942.0,0.042281]
[1773494496154,0.00985528,70951.0,70939.0,0.042282]
[1773494496750,0.00985528,70951.0,70940.0,0.042282]
[1773494496948,0.05213128,70951.0,70938.0,0.042283]
[1773494497446,0.0014,70951.0,70932.0,0.06743629]
[1773494497842,0.043676,70951.0,70937.0,0.042284]
[1773494498044,0.043676,70951.0,70938.0,0.042283]
[1773494498353,0.00845528,70947.0,70939.0,0.042283]
[1773494500253,0.05073428,70947.0,70935.0,0.042285]
[1773494500558,0.042277,70949.0,70935.0,0.042285]
[1773494500851,0.07336733,70950.0,70933.0,0.042286]
[1773494501058,0.00845528,70945.0,70934.0,0.042286]
[1773494501358,0.04368,70944.0,70932.0,0.042287]
[1773494502159,0.0014,70944.0,70933.0,0.042286]
[1773494502664,0.0014,70944.0,70934.0,0.042286]
[1773494505259,0.0014,70944.0,70932.0,0.042287]
[1773494505654,0.0014,70944.0,70933.0,0.042286]
[1773494507760,0.0014,70944.0,70934.0,0.042286]
[1773494511357,0.04368,70944.0,70925.0,0.06799109]
[1773494511758,0.00845528,70942.0,70925.0,0.06799109]
[1773494512359,0.00845528,70942.0,70932.0,0.042287]
[1773494512654,0.042281,70943.0,70930.0,0.042288]
[1773494513055,0.10501737,70943.0,70930.0,0.042288]
[1773494513555,0.00845528,70938.0,70929.0,0.042288]
[1773494513749,0.0014,70937.0,70929.0,0.042288]
[1773494516457,0.0014,70937.0,70924.0,0.167306]
[1773494516861,0.0014,70937.0,70927.0,0.04229]
[1773494521066,0.0014,70937.0,70928.0,0.042289]
[1773494526267,0.0014,70937.0,70929.0,0.042289]
[1773494533277,0.0014,70936.0,70929.0,0.042289]
[1773494533479,0.00985528,70936.0,70929.0,0.042289]
[1773494536772,0.00985528,70936.0,70927.0,0.11028109]
[1773494540382,0.0014,70936.0,70927.0,0.11028109]
[1773494543386,0.0014,70936.0,70928.0,0.042289]
[1773494545482,0.0014,70936.0,70927.0,0.06799109]
[1773494546979,0.0014,70936.0,70927.0,0.04229]
[1773494548582,0.0014,70936.0,70928.0,0.042289]
[1773494551782,0.0014,70936.0,70927.0,0.04229]
[1773494551987,0.05214028,70936.0,70924.0,0.042292]
[1773494552181,0.0014,70936.0,70924.0,0.042292]
[1773494552382,0.0014,70936.0,70925.0,0.042291]
[1773494553281,0.0014,70936.0,70926.0,0.04229]
[1773494554183,0.05074328,70932.0,70919.0,0.042294]
[1773494554375,0.05074328,70932.0,70915.0,0.25121853]
[1773494554376,0.042288,70932.0,70920.0,0.042294]
[1773494556085,0.12526905,70946.0,70920.0,0.042294]
[1773494556086,0.04228,70945.0,70932.0,0.042287]
[1773494556281,0.04368,70944.0,70932.0,0.06465705]
[1773494556478,0.0014,70943.0,70932.0,0.06465705]
[1773494556681,0.0014,70943.0,70920.0,0.07341575]
[1773494556983,0.0014,70943.0,70929.0,0.042289]
[1773494557679,0.043681,70943.0,70930.0,0.042288]
[1773494558079,0.0014,70943.0,70931.0,0.042287]
[1773494558689,0.0014,70943.0,70933.0,0.10547356]
[1773494559384,0.0014,70943.0,70933.0,0.06318756]
[1773494560991,0.042278,70948.0,70940.0,0.06213932]
[1773494561180,0.0670414,70949.0,70922.0,0.31335785]
[1773494561489,0.07341575,70950.0,70929.0,0.042289]
[1773494561490,0.1079224,70943.0,70929.0,0.042289]
[1773494561679,0.0656414,70938.0,70925.0,0.042291]
[1773494561877,0.0014,70937.0,70926.0,0.04229]
[1773494562184,0.0014,70937.0,70913.0,0.06083557]
[1773494562185,0.0656414,70936.0,70913.0,0.06083557]
[1773494562377,0.0656414,70934.0,70921.0,0.042293]
[1773494565796,0.042287,70932.0,70919.0,0.042295]
[1773494566097,0.1079274,70934.0,70919.0,0.042295]
[1773494566490,0.07341575,70930.0,70919.0,0.042295]
[1773494566691,0.0014,70929.0,70919.0,0.042295]
[1773494567687,0.0014,70929.0,70921.0,0.042294]
[1773494571000,0.0014,70929.0,70919.0,0.042295]
[1773494573901,0.0014,70929.0,70915.0,0.042297]
[1773494574096,0.06471122,70929.0,70915.0,0.042297]
[1773494574395,0.04229,70928.0,70915.0,0.042297]
[1773494574791,0.06471122,70929.0,70916.0,0.042296]
[1773494575498,0.04229,70928.0,70916.0,0.042296]
[1773494575697,0.06471122,70929.0,70916.0,0.042296]
[1773494575901,0.10700022,70929.0,70916.0,0.042296]
[1773494576102,0.04229,70928.0,70915.0,0.042297]
[1773494576498,0.07341575,70925.0,70906.0,0.31299696]
[1773494576703,0.07341575,70920.0,70909.0,0.042301]
[1773494576899,0.0014,70919.0,70909.0,0.042301]
[1773494577104,0.0014,70919.0,70906.0,0.06177843]
[1773494577298,0.0014,70919.0,70909.0,0.0423]
[1773494578497,0.0014,70919.0,70907.0,0.042302]
[1773494578896,0.0014,70919.0,70908.0,0.042301]
[1773494580205,0.0014,70919.0,70906.0,0.042302]
[1773494580403,0.0014,70919.0,70908.0,0.042301]
[1773494584704,0.0014,70919.0,70911.0,0.042299]
[1773494585008,0.0014,70919.0,70909.0,0.042301]
[1773494586101,0.0014,70919.0,70910.0,0.0423]
[1773494586994,0.0014,70919.0,70908.0,0.042301]
[1773494593609,0.0014,70919.0,70907.0,0.05965961]
[1773494594812,0.0014,70919.0,70911.0,0.042299]
[1773494597027,0.0014,70919.0,70911.0,0.09623037]
[1773494597214,0.0014,70923.0,70920.0,0.09622537]
[1773494597413,0.042288,70932.0,70920.0,0.042294]
[1773494597610,0.0014,70931.0,70920.0,0.042294]
[1773494597919,0.042288,70932.0,70919.0,0.05339384]
[1773494598217,0.0734616,70940.0,70924.0,0.05339384]
[1773494598413,0.0014,70943.0,70920.0,0.0734616]
[1773494598613,0.0014,70942.0,70937.0,0.05483341]
[1773494598813,0.06331122,70959.0,70937.0,0.05483341]
[1773494599015,0.1157386,70950.0,70937.0,0.05483341]
[1773494599215,0.001,70940.0,70937.0,0.05483341]
[1773494599416,0.00513,70949.0,70937.0,0.05483341]
[1773494599616,0.0014,70948.0,70937.0,0.05483341]
[1773494601027,0.0014,70948.0,70939.0,0.042283]
[1773494602136,0.0014,70948.0,70938.0,0.042284]
[1773494602430,0.0014,70948.0,70937.0,0.05483341]
[1773494602632,0.0014,70948.0,70937.0,0.09711741]
[1773494603831,0.042276,70951.0,70937.0,0.09711741]
[1773494603832,0.0014,70947.0,70937.0,0.09711741]
[1773494604041,0.042279,70946.0,70928.0,0.05412705]
[1773494604335,0.042279,70946.0,70933.0,0.042286]
[1773494604726,0.0014,70947.0,70933.0,0.042286]
[1773494605330,0.0014,70947.0,70928.0,0.05412705]
[1773494605535,0.0014,70946.0,70937.0,0.05410167]
[1773494610548,0.0014,70946.0,70937.0,0.09638567]
[1773494610744,0.0014,70946.0,70937.0,0.042284]
[1773494611047,0.0014,70945.0,70938.0,0.0502773]
[1773494611348,0.0014,70944.0,70938.0,0.0502773]
[1773494611848,0.0014,70943.0,70938.0,0.0502773]
[1773494612245,0.042277,70950.0,70938.0,0.0502773]
[1773494612544,0.0014,70949.0,70938.0,0.0502773]
[1773494612947,0.042277,70950.0,70938.0,0.0502773]
[1773494613242,0.0014,70949.0,70938.0,0.0502773]
[1773494613551,0.0014,70948.0,70938.0,0.04781071]
[1773494613933,0.0014,70948.0,70935.0,0.08815458]
[1773494614146,0.0014,70948.0,70935.0,0.042285]
[1773494614540,0.0014,70947.0,70935.0,0.042285]
[1773494616753,0.0014,70947.0,70935.0,0.09351229]
[1773494617654,0.0014,70947.0,70939.0,0.042283]
[1773494617840,0.0014,70947.0,70937.0,0.09274906]
[1773494618042,0.0014,70947.0,70938.0,0.042283]
[1773494618355,0.0014,70947.0,70938.0,0.09274806]
[1773494619151,0.0014,70946.0,70938.0,0.09274806]
[1773494619854,0.042276,70951.0,70938.0,0.09274806]
[1773494620045,0.0014,70950.0,70938.0,0.09274806]
[1773494620352,0.05673584,70958.0,70938.0,0.05046506]
[1773494620553,0.0014,70957.0,70938.0,0.05046506]
[1773494621052,0.042276,70951.0,70939.0,0.05220647]
[1773494621942,0.0014,70950.0,70939.0,0.05220647]
[1773494622448,0.0014,70949.0,70939.0,0.05220647]
[1773494622952,0.0014,70948.0,70939.0,0.05220647]
[1773494623352,0.042276,70951.0,70939.0,0.05220647]
[1773494623558,0.0014,70950.0,70939.0,0.05220647]
[1773494623851,0.042276,70951.0,70939.0,0.05220647]
[1773494624152,0.0014,70950.0,70939.0,0.09448947]
[1773494624344,0.042276,70951.0,70939.0,0.09448947]
[1773494624539,0.0014,70950.0,70939.0,0.09448947]
[1773494624950,0.0014,70949.0,70939.0,0.09448947]
[1773494625347,0.042276,70951.0,70939.0,0.09448947]
[1773494625546,0.0734616,70960.0,70927.0,0.0014]
[1773494625547,0.0014,70950.0,70941.0,0.042281]
[1773494625746,0.0734616,70960.0,70942.0,0.04831302]
[1773494625747,0.0014,70949.0,70942.0,0.04831302]
[1773494625957,0.0014,70948.0,70942.0,0.04831302]
[1773494626451,0.0014,70948.0,70941.0,0.042281]
[1773494631449,0.0014,70947.0,70941.0,0.042281]
[1773494634659,0.0014,70946.0,70941.0,0.042281]
[1773494634957,0.0014,70945.0,70941.0,0.042281]
[1773494635256,0.0014,70944.0,70941.0,0.042281]
[1773494635459,0.0014,70943.0,70941.0,0.042281]
[1773494636058,0.0014,70943.0,70938.0,0.04772248]
[1773494637147,0.0014,70943.0,70940.0,0.042282]
[1773494637357,0.0014,70943.0,70941.0,0.042281]
[1773494641048,0.04019796,70954.0,70941.0,0.042281]
[1773494641255,0.0014,70961.0,70957.0,0.08131091]
[1773494641457,0.0014,70960.0,70957.0,0.042272]
[1773494641751,0.0014,70959.0,70958.0,0.03920443]
[1773494642154,0.18389104,70975.0,70958.0,0.03920443]
[1773494642155,0.0014,70963.0,70958.0,0.03920443]
[1773494642554,0.042265,70970.0,70958.0,0.03920443]
[1773494642758,0.0014,70969.0,70958.0,0.03920443]
[1773494643355,0.0014,70965.0,70958.0,0.08147543]
[1773494644355,0.0014,70964.0,70958.0,0.03920443]
[1773494644549,0.0014,70963.0,70958.0,0.03920443]
[1773494644851,0.042262,70974.0,70958.0,0.03920443]
[1773494645057,0.043663,70973.0,70960.0,0.04227]
[1773494645552,0.05721603,70979.0,70958.0,0.03920443]
[1773494645760,0.0014,70978.0,70958.0,0.03920443]
[1773494646061,0.1995395,70978.0,70958.0,0.03920443]
[1773494647050,0.042265,70970.0,70958.0,0.03920443]
[1773494647248,0.0014,70969.0,70958.0,0.03920443]
[1773494647460,0.042265,70970.0,70947.0,0.0014]
[1773494647461,0.0014,70970.0,70951.0,0.03621297]
[1773494647866,0.0014,70972.0,70961.0,0.03621297]
[1773494648049,0.0014,70971.0,70961.0,0.03621297]
[1773494648360,0.0748616,70971.0,70953.0,0.042274]
[1773494648557,0.042266,70968.0,70954.0,0.042274]
[1773494649359,0.0748616,70971.0,70953.0,0.042274]
[1773494649552,0.042267,70966.0,70953.0,0.042274]
[1773494649758,0.0748616,70971.0,70949.0,0.042277]
[1773494649759,0.1157306,70963.0,70949.0,0.042277]
[1773494649956,0.0014,70962.0,70949.0,0.042277]
[1773494650254,0.0014,70962.0,70949.0,0.07756452]
[1773494651456,0.0014,70962.0,70949.0,0.042277]
[1773494651661,0.0734616,70960.0,70949.0,0.042277]
[1773494652567,0.0734616,70960.0,70942.0,0.03420298]
[1773494652568,0.0734616,70960.0,70947.0,0.042278]
[1773494653659,0.042271,70959.0,70945.0,0.042279]
[1773494653861,0.042271,70959.0,70942.0,0.03420298]
[1773494654370,0.07338187,70960.0,70946.0,0.042278]
[1773494655967,0.02741854,70953.0,70946.0,0.042278]
[1773494656168,0.0014,70952.0,70946.0,0.042278]
[1773494656371,0.02741854,70953.0,70941.0,0.02742905]
[1773494656563,0.01896425,70953.0,70941.0,0.02742905]
[1773494657070,0.0014,70952.0,70941.0,0.02742905]
[1773494657271,0.0014,70952.0,70942.0,0.02742905]
[1773494657569,0.0014,70952.0,70947.0,0.042278]
[1773494657962,0.0014,70952.0,70948.0,0.06923721]
[1773494658163,0.0014,70952.0,70949.0,0.02696021]
[1773494663570,0.07338187,70960.0,70948.0,0.042277]
[1773494663775,0.0014,70959.0,70948.0,0.042277]
[1773494663964,0.00845454,70956.0,70948.0,0.042277]
[1773494665273,0.00845454,70956.0,70949.0,0.042277]
[1773494665678,0.0014,70959.0,70949.0,0.042277]
[1773494668063,0.0014,70959.0,70945.0,0.19020028]
[1773494668266,0.0014,70959.0,70948.0,0.042277]
[1773494668964,0.0014,70959.0,70949.0,0.042277]
[1773494669265,0.0014,70959.0,70951.0,0.042275]
[1773494669784,0.042269,70963.0,70951.0,0.042275]
[1773494669964,0.00845454,70957.0,70951.0,0.042275]
[1773494670469,0.00845454,70957.0,70949.0,0.042277]
[1773494671366,0.0014,70956.0,70949.0,0.042277]
[1773494671871,0.0014,70955.0,70949.0,0.02133231]
[1773494672071,0.0014,70957.0,70949.0,0.06360931]
[1773494673074,0.0014,70957.0,70949.0,0.02133231]
[1773494673965,0.0014,70957.0,70951.0,0.042276]
[1773494674170,0.042268,70964.0,70951.0,0.07364196]
[1773494674171,0.0014,70956.0,70951.0,0.07364196]
[1773494674678,0.0014,70956.0,70949.0,0.21009443]
[1773494676292,0.0014,70956.0,70950.0,0.042276]
[1773494676581,0.0014,70956.0,70948.0,0.16781743]
[1773494676880,0.0014,70956.0,70946.0,0.03089511]
[1773494676881,0.0014,70956.0,70946.0,0.19871254]
[1773494677082,0.0014,70956.0,70947.0,0.03037273]
[1773494677379,0.0014,70956.0,70949.0,0.042277]
[1773494679883,0.0014,70956.0,70947.0,0.03037273]
[1773494680177,0.05382562,70969.0,70947.0,0.03037273]
[1773494680178,0.0014,70957.0,70948.0,0.02915996]
[1773494680878,0.0014,70957.0,70954.0,0.042274]
[1773494681085,0.0014,70959.0,70952.0,0.042275]
[1773494682879,0.042268,70964.0,70952.0,0.042275]
[1773494683070,0.0014,70963.0,70952.0,0.042275]
[1773494683474,0.042268,70964.0,70952.0,0.042275]
[1773494683680,0.0014,70963.0,70952.0,0.042275]
[1773494683982,0.042268,70964.0,70952.0,0.042275]
[1773494684182,0.0014,70963.0,70952.0,0.042275]
[1773494684480,0.05382562,70969.0,70950.0,0.21009343]
[1773494684678,0.07338187,70962.0,70950.0,0.21009343]
[1773494684879,0.0014,70961.0,70950.0,0.21009343]
[1773494685180,0.0014,70961.0,70950.0,0.042276]
[1773494685481,0.00193419,70956.0,70950.0,0.042276]
[1773494686476,0.0014,70961.0,70950.0,0.042276]
[1773494686865,0.0014,70961.0,70947.0,0.16781743]
[1773494687177,0.0014,70961.0,70951.0,0.042275]
[1773494687374,0.0014,70961.0,70953.0,0.042275]
[1773494687882,0.0014,70961.0,70951.0,0.042276]
[1773494688481,0.0014,70961.0,70949.0,0.02921678]
[1773494688983,0.0014,70961.0,70952.0,0.042275]
[1773494690982,0.0014,70961.0,70953.0,0.042274]
[1773494691186,0.0014,70967.0,70957.0,0.02773113]
[1773494691383,0.0014,70966.0,70960.0,0.06988286]
[1773494691680,0.0014,70966.0,70961.0,0.02761286]
[1773494691875,0.0014,70965.0,70961.0,0.02761286]
[1773494693077,0.0014,70967.0,70963.0,0.02986485]
[1773494693387,0.0014,70969.0,70963.0,0.02986485]
[1773494693575,0.042262,70974.0,70963.0,0.02986485]
[1773494695671,0.0014,70973.0,70963.0,0.02986485]
[1773494696581,0.042262,70974.0,70963.0,0.02986485]
[1773494696782,0.0014,70973.0,70963.0,0.02986485]
[1773494697290,0.0014,70972.0,70963.0,0.02986485]
[1773494697785,0.0014,70971.0,70963.0,0.02986485]
[1773494697981,0.0014,70970.0,70963.0,0.02986485]
[1773494698177,0.042263,70974.0,70961.0,0.04227]
[1773494698382,0.0014,70969.0,70961.0,0.04227]
[1773494698586,0.0014,70969.0,70959.0,0.042271]
[1773494699178,0.0014,70969.0,70960.0,0.04227]
[1773494701190,0.0014,70969.0,70950.0,0.16921743]
[1773494701484,0.0014,70969.0,70950.0,0.20604322]
[1773494701690,0.0014,70969.0,70951.0,0.03682579]
[1773494701989,0.042266,70968.0,70951.0,0.03682579]
[1773494702177,0.042266,70968.0,70955.0,0.042273]
[1773494705983,0.043665,70969.0,70957.0,0.042272]
[1773494706487,0.042265,70969.0,70955.0,0.07542458]
[1773494706684,0.0014,70968.0,70956.0,0.03364625]
[1773494706880,0.0014,70968.0,70959.0,0.042271]
[1773494707988,0.0014,70968.0,70956.0,0.03364625]
[1773494708181,0.0014,70968.0,70959.0,0.042271]
[1773494710782,0.0014,70968.0,70960.0,0.03168746]
[1773494711387,0.0014,70968.0,70959.0,0.042271]
[1773494711588,0.0014,70968.0,70957.0,0.042272]
[1773494712382,0.0014,70968.0,70958.0,0.042271]
[1773494712979,0.0014,70968.0,70952.0,0.0311982]
[1773494713283,0.0014,70968.0,70956.0,0.042273]
[1773494713485,0.043666,70968.0,70956.0,0.042273]
[1773494715992,0.0014,70968.0,70956.0,0.042273]
[1773494716690,0.0014,70968.0,70957.0,0.042272]
[1773494717492,0.0014,70969.0,70961.0,0.02493532]
[1773494717700,0.0014,70968.0,70958.0,0.042271]
[1773494717996,0.0014,70967.0,70958.0,0.042271]
[1773494718382,0.0014,70967.0,70957.0,0.02493532]
[1773494718582,0.0014,70967.0,70960.0,0.04227]
[1773494722690,0.0014,70967.0,70961.0,0.04227]
[1773494722899,0.0014,70967.0,70959.0,0.042271]
[1773494723090,0.00070441,70981.0,70964.0,0.0258206]
[1773494723288,0.0084522,70976.0,70964.0,0.0258206]
[1773494723593,0.0014,70975.0,70966.0,0.06758294]
[1773494723788,0.0014,70975.0,70967.0,0.02531694]
[1773494723994,0.04296341,70981.0,70967.0,0.02531694]
[1773494724197,0.07476409,70980.0,70963.0,0.06758494]
[1773494724698,0.0084522,70972.0,70963.0,0.06758494]
[1773494725001,0.0084522,70972.0,70964.0,0.042268]
[1773494725201,0.0098522,70972.0,70964.0,0.042268]
[1773494725592,0.0014,70972.0,70964.0,0.042268]
[1773494728701,0.0014,70972.0,70958.0,0.021583]
[1773494728903,0.05305745,70969.0,70948.0,0.18940043]
[1773494729206,0.042265,70969.0,70945.0,0.021583]
[1773494729406,0.042266,70968.0,70953.0,0.063857]
[1773494729611,0.0084522,70962.0,70954.0,0.06338794]
[1773494729901,0.0014,70961.0,70954.0,0.06338794]
[1773494730602,0.0014,70960.0,70954.0,0.06338794]
[1773494730808,0.0014,70960.0,70954.0,0.02111394]
[1773494732000,0.0014,70960.0,70949.0,0.06333301]
[1773494732305,0.0014,70960.0,70951.0,0.042276]
[1773494732706,0.0014,70960.0,70951.0,0.0626268]
[1773494734201,0.0014,70960.0,70952.0,0.01992452]
[1773494738609,0.0084522,70959.0,70939.0,0.18515777]
[1773494738815,0.0014,70960.0,70942.0,0.042281]
[1773494738816,0.07336409,70950.0,70942.0,0.042281]
[1773494739010,0.07336409,70950.0,70939.0,0.01734034]
[1773494739011,0.07336409,70950.0,70943.0,0.04228]
[1773494739518,0.0014,70949.0,70943.0,0.04228]
[1773494739712,0.0014,70949.0,70939.0,0.01834034]
[1773494740014,0.0014,70949.0,70939.0,0.06062334]
[1773494740416,0.0014,70949.0,70939.0,0.05962334]
[1773494741019,0.0014,70949.0,70939.0,0.042283]
[1773494741316,0.0014,70949.0,70940.0,0.042282]
[1773494741514,0.0098522,70949.0,70940.0,0.042282]
[1773494741911,0.042278,70948.0,70936.0,0.01909708]
[1773494744516,0.0014,70947.0,70937.0,0.0200465]
[1773494745820,0.042278,70948.0,70937.0,0.0200465]
[1773494746019,0.0014,70947.0,70937.0,0.0200465]
[1773494746421,0.0084522,70946.0,70937.0,0.0200465]
[1773494746716,0.0507312,70946.0,70937.0,0.0200465]
[1773494746916,0.0507312,70946.0,70933.0,0.042286]
[1773494747117,0.0084522,70946.0,70934.0,0.06058727]
[1773494747318,0.0084522,70946.0,70934.0,0.042286]
[1773494747518,0.0084522,70946.0,70937.0,0.001]
[1773494747916,0.0084522,70946.0,70935.0,0.01763628]
[1773494748122,0.042279,70945.0,70935.0,0.01763628]
[1773494748720,0.042279,70945.0,70937.0,0.001]
[1773494749623,0.0084522,70946.0,70937.0,0.001]
[1773494749820,0.0014,70944.0,70937.0,0.001]
[1773494750421,0.0014,70944.0,70935.0,0.01863628]
[1773494750720,0.0014,70944.0,70935.0,0.001]
[1773494750931,0.0014,70944.0,70933.0,0.042286]
[1773494751628,0.0014,70948.0,70936.0,0.042284]
[1773494751926,0.0014,70948.0,70936.0,0.06294949]
[1773494752125,0.0084522,70941.0,70937.0,0.02066549]
[1773494752316,0.0014,70948.0,70937.0,0.02066549]
[1773494752716,0.043678,70948.0,70937.0,0.02066549]
[1773494755725,0.043678,70948.0,70934.0,0.042286]
[1773494756326,0.043678,70948.0,70934.0,0.06131362]
[1773494757120,0.042279,70946.0,70934.0,0.06131362]
[1773494759333,0.043678,70948.0,70935.0,0.05996981]
[1773494760128,0.042278,70948.0,70935.0,0.05996981]
[1773494760333,0.0014,70947.0,70935.0,0.05996981]
[1773494760534,0.042278,70948.0,70935.0,0.05996981]
[1773494760721,0.0014,70947.0,70935.0,0.05996981]
[1773494761222,0.042278,70948.0,70935.0,0.05996981]
[1773494761223,0.0014,70946.0,70935.0,0.05996981]
[1773494761731,0.0014,70945.0,70935.0,0.05996981]
[1773494762235,0.0014,70944.0,70935.0,0.05996981]
[1773494762734,0.07336409,70950.0,70928.0,0.01667449]
[1773494762922,0.04228,70945.0,70932.0,0.042287]
[1773494763129,0.0014,70944.0,70933.0,0.042286]
[1773494770643,0.0014,70944.0,70933.0,0.06001858]
[1773494772842,0.0014,70944.0,70934.0,0.042286]
[1773494773938,0.0014,70944.0,70934.0,0.0587356]
[1773494781455,0.12647444,70944.0,70927.0,0.16790562]
[1773494781757,0.042284,70938.0,70925.0,0.042291]
[1773494782150,0.043685,70937.0,70925.0,0.042291]
[1773494782457,0.042285,70936.0,70924.0,0.042292]
[1773494783759,0.0014,70937.0,70925.0,0.042291]
[1773494783958,0.0014,70937.0,70925.0,0.05114263]
[1773494784461,0.0014,70937.0,70926.0,0.00885163]
[1773494785063,0.042285,70936.0,70922.0,0.00017401]
[1773494785554,0.042285,70936.0,70922.0,0.00812449]
[1773494785961,0.042285,70936.0,70924.0,0.042292]
[1773494786754,0.0014,70937.0,70922.0,0.05041749]
[1773494786950,0.0014,70937.0,70922.0,0.00812449]
[1773494787155,0.0014,70937.0,70922.0,0.00017401]
[1773494787862,0.042287,70933.0,70922.0,0.00017401]
[1773494790261,0.042286,70935.0,70922.0,0.00017401]
[1773494793566,0.042286,70935.0,70922.0,0.04246701]
[1773494794571,0.042286,70935.0,70923.0,0.042292]
[1773494799477,0.0014,70937.0,70922.0,0.00017401]
[1773494801076,0.042286,70935.0,70922.0,0.00017401]
[1773494803380,0.042286,70935.0,70922.0,0.04246701]
[1773494806869,0.05286711,70934.0,70922.0,0.00017401]
[1773494807076,0.042288,70931.0,70922.0,0.00017401]
[1773494807277,0.0014,70930.0,70922.0,0.00017401]
[1773494807781,0.0014,70930.0,70919.0,0.042295]
[1773494808084,0.0014,70930.0,70920.0,0.042294]
[1773494808784,0.00013681,70929.0,70920.0,0.042294]
[1773494814389,0.00013681,70929.0,70918.0,0.042295]
[1773494814694,0.20131188,70928.0,70918.0,0.042295]
[1773494814898,0.00013681,70929.0,70918.0,0.042295]
[1773494815094,0.20131236,70928.0,70918.0,0.042295]
[1773494815294,0.00013681,70929.0,70918.0,0.042295]
[1773494815594,0.20130979,70928.0,70918.0,0.042295]
[1773494815792,0.00013681,70929.0,70918.0,0.042295]
[1773494815994,0.20130979,70928.0,70918.0,0.042295]
[1773494816192,0.00013681,70929.0,70918.0,0.042295]
[1773494816391,0.20130589,70928.0,70919.0,0.042295]
[1773494816694,0.00013681,70929.0,70919.0,0.042295]
[1773494816995,0.20130589,70928.0,70919.0,0.042295]
[1773494817197,0.00013681,70929.0,70919.0,0.042295]
[1773494817391,0.20130367,70928.0,70919.0,0.042295]
[1773494817587,0.00013681,70929.0,70919.0,0.042295]
[1773494817787,0.20130367,70928.0,70919.0,0.042295]